[Event "Titled Tuesday Blitz May 24 Early 2022"]
[White "Bluebaum, Matthias"]
[Black "Durarbayli, Vasif"]
[WhiteFideId "24651516"]
[BlackFideId "13402935"]
[WhiteElo "2556"]
[BlackElo "2528"]
[Result "1-0"]
[Round "04"]
[TimeControl "180+1"]
[Date "2022.05.24"]
[WhiteClock "0:00:24"]
[BlackClock "0:00:01"]

1. d4 {[%clk 0:03:00]}  Nf6 {[%clk 0:03:00]} 2. c4 {[%clk 0:02:59]}  e6 {[%clk 0:03:00]} 3. Nc3 {[%clk 0:02:57]}  Bb4 {[%clk 0:03:01]} 4. e3 {[%clk 0:02:56]}  O-O {[%clk 0:03:01]} 5. Bd3 {[%clk 0:02:56]}  c5 {[%clk 0:03:02]} 6. Ne2 {[%clk 0:02:56]}  cxd4 {[%clk 0:03:02]} 7. exd4 {[%clk 0:02:56]}  d5 {[%clk 0:03:02]} 8. cxd5 {[%clk 0:02:57]}  Nxd5 {[%clk 0:02:52]} 9. O-O {[%clk 0:02:56]}  Nc6 {[%clk 0:02:52]} 10. a3 {[%clk 0:02:56]}  Be7 {[%clk 0:02:50]} 11. Re1 {[%clk 0:02:56]}  Bf6 {[%clk 0:02:48]} 12. Bc2 {[%clk 0:02:56]}  Nce7 {[%clk 0:02:41]} 13. Ng3 {[%clk 0:02:51]}  g6 {[%clk 0:02:41]} 14. Bh6 {[%clk 0:02:48]}  Bg7 {[%clk 0:02:41]} 15. Qd2 {[%clk 0:02:44]}  b6 {[%clk 0:02:34]} 16. h4 {[%clk 0:02:42]}  Bb7 {[%clk 0:02:15]} 17. h5 {[%clk 0:02:35]}  Nf5 {[%clk 0:02:08]} 18. Nxf5 {[%clk 0:02:21]}  exf5 {[%clk 0:02:08]} 19. Bxg7 {[%clk 0:02:11]}  Kxg7 {[%clk 0:02:09]} 20. Re5 {[%clk 0:02:04]}  Nf6 {[%clk 0:01:41]} 21. h6+ {[%clk 0:01:51]}  Kh8 {[%clk 0:01:41]} 22. Rae1 {[%clk 0:01:42]}  Ng4 {[%clk 0:01:29]} 23. Re7 {[%clk 0:01:42]}  Qd6 {[%clk 0:01:11]} 24. Rxb7 {[%clk 0:01:27]}  Qh2+ {[%clk 0:01:00]} 25. Kf1 {[%clk 0:01:22]}  Rae8 {[%clk 0:00:49]} 26. Ree7 {[%clk 0:01:22]}  Qh1+ {[%clk 0:00:40]} 27. Ke2 {[%clk 0:01:22]}  Qxg2 {[%clk 0:00:41]} 28. d5 {[%clk 0:01:02]}  Qxf2+ {[%clk 0:00:28]} 29. Kd1 {[%clk 0:01:00]}  Qf1+ {[%clk 0:00:10]} 30. Qe1 {[%clk 0:01:00]}  Qf3+ {[%clk 0:00:04]} 31. Kc1 {[%clk 0:00:54]}  Ne3 {[%clk 0:00:04]} 32. Kb1 {[%clk 0:00:48]}  Rxe7 {[%clk 0:00:03]} 33. Rxe7 {[%clk 0:00:47]}  f4 {[%clk 0:00:03]} 34. Qd2 {[%clk 0:00:43]}  Qf1+ {[%clk 0:00:03]} 35. Ka2 {[%clk 0:00:43]}  Qc4+ {[%clk 0:00:02]} 36. Bb3 {[%clk 0:00:43]}  Qc5 {[%clk 0:00:02]} 37. Ne4 {[%clk 0:00:41]}  Qxe7 {[%clk 0:00:02]} 38. Qd4+ {[%clk 0:00:40]}  f6 {[%clk 0:00:02]} 39. d6 {[%clk 0:00:33]}  Qe5 {[%clk 0:00:03]} 40. Qxe5 {[%clk 0:00:34]}  fxe5 {[%clk 0:00:03]} 41. Ng5 {[%clk 0:00:35]}  f3 {[%clk 0:00:03]} 42. d7 {[%clk 0:00:36]}  f2 {[%clk 0:00:03]} 43. Nf7+ {[%clk 0:00:36]}  Kg8 {[%clk 0:00:04]} 44. Nxe5+ {[%clk 0:00:26]}  Kh8 {[%clk 0:00:04]} 45. Nf7+ {[%clk 0:00:27]}  Kg8 {[%clk 0:00:05]} 46. Nd6+ {[%clk 0:00:23]}  Kh8 {[%clk 0:00:05]} 47. Ne8 {[%clk 0:00:23]}  f1=Q {[%clk 0:00:05]} 48. d8=Q {[%clk 0:00:24]}  Qf4 {[%clk 0:00:01]} 49. Qe7 {[%clk 0:00:24]} 1-0


[Site "https://www.chess.com"]

[Event "Titled Tuesday Blitz May 24 Early 2022"]
[White "Cardoso Cardoso, Jose Gabriel"]
[Black "Sirosh, Ilja"]
[WhiteFideId "4430492"]
[BlackFideId "4500458"]
[WhiteElo "2485"]
[BlackElo "2241"]
[Result "1-0"]
[Round "04"]
[TimeControl "180+1"]
[Date "2022.05.25"]
[WhiteClock "0:00:24"]
[BlackClock "0:00:30"]

1. c4 {[%clk 0:02:41]}  e6 {[%clk 0:02:59]} 2. Nf3 {[%clk 0:02:38]}  d5 {[%clk 0:03:00]} 3. e3 {[%clk 0:02:38]}  c5 {[%clk 0:02:59]} 4. cxd5 {[%clk 0:02:34]}  exd5 {[%clk 0:03:00]} 5. Bb5+ {[%clk 0:02:31]}  Nc6 {[%clk 0:02:59]} 6. d4 {[%clk 0:02:31]}  Nf6 {[%clk 0:02:58]} 7. O-O {[%clk 0:02:28]}  cxd4 {[%clk 0:02:58]} 8. Nxd4 {[%clk 0:02:27]}  Bd7 {[%clk 0:02:58]} 9. Nc3 {[%clk 0:02:23]}  Bd6 {[%clk 0:02:57]} 10. b3 {[%clk 0:02:17]}  a6 {[%clk 0:02:56]} 11. Be2 {[%clk 0:02:16]}  Qc7 {[%clk 0:02:56]} 12. Nf3 {[%clk 0:02:12]}  Be6 {[%clk 0:02:56]} 13. Bb2 {[%clk 0:02:11]}  O-O {[%clk 0:02:57]} 14. h3 {[%clk 0:02:09]}  Rad8 {[%clk 0:02:51]} 15. Rc1 {[%clk 0:02:03]}  Qe7 {[%clk 0:02:50]} 16. Nd4 {[%clk 0:02:02]}  Rfe8 {[%clk 0:02:33]} 17. Na4 {[%clk 0:01:42]}  Ne4 {[%clk 0:02:15]} 18. Bg4 {[%clk 0:01:33]}  Nxd4 {[%clk 0:02:08]} 19. Qxd4 {[%clk 0:01:31]}  f5 {[%clk 0:02:07]} 20. Bh5 {[%clk 0:01:28]}  Rf8 {[%clk 0:02:03]} 21. Nb6 {[%clk 0:01:21]}  Qg5 {[%clk 0:01:52]} 22. h4 {[%clk 0:01:08]}  Qh6 {[%clk 0:01:51]} 23. g3 {[%clk 0:01:06]}  Nf6 {[%clk 0:01:47]} 24. Bf3 {[%clk 0:01:04]}  Bb8 {[%clk 0:01:37]} 25. Kg2 {[%clk 0:01:01]}  Rf7 {[%clk 0:01:24]} 26. Rc2 {[%clk 0:00:55]}  Ne4 {[%clk 0:01:23]} 27. Nc4 {[%clk 0:00:47]}  f4 {[%clk 0:00:57]} 28. exf4 {[%clk 0:00:44]}  Rdf8 {[%clk 0:00:47]} 29. Ne5 {[%clk 0:00:42]}  Rxf4 {[%clk 0:00:45]} 30. gxf4 {[%clk 0:00:38]}  Qxf4 {[%clk 0:00:46]} 31. Qe3 {[%clk 0:00:27]}  Bxe5 {[%clk 0:00:32]} 32. Qxf4 {[%clk 0:00:26]}  Rxf4 {[%clk 0:00:30]} 33. Bxe5 {[%clk 0:00:24]} 1-0


[Site "https://www.chess.com"]

[Event "Titled Tuesday Blitz May 24 Early 2022"]
[White "Chernomordik, Pavel"]
[Black "Gronnestad, Anita"]
[WhiteFideId "2804530"]
[BlackFideId "1502972"]
[WhiteElo "2220"]
[BlackElo "1933"]
[Result "1-0"]
[Round "04"]
[TimeControl "180+1"]
[Date "2022.05.25"]
[WhiteClock "0:01:29"]
[BlackClock "0:00:34"]

1. e3 {[%clk 0:03:00]}  c5 {[%clk 0:02:59]} 2. e4 {[%clk 0:03:00]}  Nc6 {[%clk 0:02:58]} 3. Nc3 {[%clk 0:02:59]}  g6 {[%clk 0:02:58]} 4. f4 {[%clk 0:02:58]}  Bg7 {[%clk 0:02:57]} 5. Nf3 {[%clk 0:02:58]}  e6 {[%clk 0:02:58]} 6. e5 {[%clk 0:02:56]}  Nge7 {[%clk 0:02:57]} 7. Ne4 {[%clk 0:02:56]}  O-O {[%clk 0:02:45]} 8. Nxc5 {[%clk 0:02:55]}  b6 {[%clk 0:02:43]} 9. Ne4 {[%clk 0:02:54]}  Nf5 {[%clk 0:02:43]} 10. d4 {[%clk 0:02:51]}  Bb7 {[%clk 0:02:38]} 11. Qd3 {[%clk 0:02:28]}  Nb4 {[%clk 0:02:32]} 12. Qe2 {[%clk 0:02:27]}  d5 {[%clk 0:02:12]} 13. Ng3 {[%clk 0:02:18]}  Rc8 {[%clk 0:01:58]} 14. c3 {[%clk 0:02:17]}  Ba6 {[%clk 0:01:58]} 15. Qd2 {[%clk 0:02:10]}  Bxf1 {[%clk 0:01:47]} 16. Rxf1 {[%clk 0:02:09]}  Nxg3 {[%clk 0:01:39]} 17. hxg3 {[%clk 0:02:09]}  Nc6 {[%clk 0:01:38]} 18. Kf2 {[%clk 0:02:08]}  a5 {[%clk 0:01:36]} 19. g4 {[%clk 0:02:06]}  a4 {[%clk 0:01:36]} 20. Rh1 {[%clk 0:02:02]}  Na5 {[%clk 0:01:36]} 21. Qc2 {[%clk 0:01:56]}  b5 {[%clk 0:01:25]} 22. f5 {[%clk 0:01:56]}  Qb6 {[%clk 0:01:14]} 23. Bh6 {[%clk 0:01:50]}  b4 {[%clk 0:01:08]} 24. Bxg7 {[%clk 0:01:44]}  Kxg7 {[%clk 0:01:08]} 25. Qd2 {[%clk 0:01:44]}  h5 {[%clk 0:01:01]} 26. f6+ {[%clk 0:01:38]}  Kh7 {[%clk 0:00:57]} 27. gxh5 {[%clk 0:01:35]}  Rh8 {[%clk 0:00:34]} 28. hxg6+ {[%clk 0:01:31]}  Kxg6 {[%clk 0:00:34]} 29. Qg5# {[%clk 0:01:29]} 1-0


[Site "https://www.chess.com"]

[Event "Titled Tuesday Blitz May 24 Early 2022"]
[White "Chuemsakul, Sarocha"]
[Black "Nguyen, Quoc Hy"]
[WhiteFideId "6203710"]
[BlackFideId "12410853"]
[WhiteElo "1703"]
[BlackElo "1938"]
[Result "0-1"]
[Round "04"]
[TimeControl "180+1"]
[Date "2022.05.25"]
[WhiteClock "0:00:02"]
[BlackClock "0:00:08"]

1. d4 {[%clk 0:02:57]}  d5 {[%clk 0:03:00]} 2. c4 {[%clk 0:02:56]}  c6 {[%clk 0:03:01]} 3. cxd5 {[%clk 0:02:56]}  cxd5 {[%clk 0:03:00]} 4. Nc3 {[%clk 0:02:57]}  Nf6 {[%clk 0:03:01]} 5. Nf3 {[%clk 0:02:58]}  Nc6 {[%clk 0:02:59]} 6. Bf4 {[%clk 0:02:58]}  e6 {[%clk 0:02:58]} 7. e3 {[%clk 0:02:59]}  Bd6 {[%clk 0:02:57]} 8. Bxd6 {[%clk 0:02:59]}  Qxd6 {[%clk 0:02:58]} 9. Bd3 {[%clk 0:03:00]}  a6 {[%clk 0:02:58]} 10. O-O {[%clk 0:03:00]}  b5 {[%clk 0:02:59]} 11. Rc1 {[%clk 0:02:56]}  Bb7 {[%clk 0:02:59]} 12. Ne2 {[%clk 0:02:27]}  O-O {[%clk 0:02:54]} 13. h3 {[%clk 0:02:17]}  Rac8 {[%clk 0:02:53]} 14. Ng3 {[%clk 0:02:16]}  g6 {[%clk 0:02:43]} 15. Qd2 {[%clk 0:02:10]}  Rc7 {[%clk 0:02:37]} 16. Rc2 {[%clk 0:02:00]}  Rfc8 {[%clk 0:02:35]} 17. Rfc1 {[%clk 0:02:00]}  Ne7 {[%clk 0:02:25]} 18. Rxc7 {[%clk 0:01:59]}  Rxc7 {[%clk 0:02:25]} 19. Rxc7 {[%clk 0:02:00]}  Qxc7 {[%clk 0:02:25]} 20. Qc2 {[%clk 0:02:01]}  Qxc2 {[%clk 0:02:23]} 21. Bxc2 {[%clk 0:02:02]}  Nc6 {[%clk 0:02:23]} 22. Kf1 {[%clk 0:01:54]}  Kf8 {[%clk 0:02:21]} 23. Ke2 {[%clk 0:01:51]}  Ke7 {[%clk 0:02:20]} 24. Nd2 {[%clk 0:01:45]}  Kd6 {[%clk 0:02:15]} 25. Nb3 {[%clk 0:01:44]}  Nd7 {[%clk 0:02:13]} 26. a3 {[%clk 0:01:37]}  a5 {[%clk 0:02:12]} 27. Bd3 {[%clk 0:01:31]}  b4 {[%clk 0:02:00]} 28. Bb5 {[%clk 0:01:08]}  Nb6 {[%clk 0:01:16]} 29. Bxc6 {[%clk 0:00:56]}  Ba6+ {[%clk 0:01:16]} 30. Kd1 {[%clk 0:00:40]}  Kxc6 {[%clk 0:01:13]} 31. Nxa5+ {[%clk 0:00:40]}  Kb5 {[%clk 0:01:10]} 32. axb4 {[%clk 0:00:40]}  Kxb4 {[%clk 0:00:54]} 33. Nc6+ {[%clk 0:00:40]}  Kb3 {[%clk 0:00:54]} 34. Nd8 {[%clk 0:00:39]}  Nc4 {[%clk 0:00:49]} 35. Nxf7 {[%clk 0:00:30]}  Nxb2+ {[%clk 0:00:49]} 36. Kd2 {[%clk 0:00:30]}  Nc4+ {[%clk 0:00:48]} 37. Ke1 {[%clk 0:00:30]}  Kc2 {[%clk 0:00:43]} 38. Ng5 {[%clk 0:00:16]}  Nb2 {[%clk 0:00:38]} 39. Nxh7 {[%clk 0:00:14]}  Kc1 {[%clk 0:00:20]} 40. f3 {[%clk 0:00:14]}  Nd3+ {[%clk 0:00:19]} 41. Kf1 {[%clk 0:00:14]}  Kd2 {[%clk 0:00:19]} 42. Kg1 {[%clk 0:00:14]}  Kxe3 {[%clk 0:00:19]} 43. Nf8 {[%clk 0:00:13]}  Nf4 {[%clk 0:00:19]} 44. Kh2 {[%clk 0:00:06]}  Kxd4 {[%clk 0:00:19]} 45. Nd7 {[%clk 0:00:07]}  Bb5 {[%clk 0:00:16]} 46. Nf8 {[%clk 0:00:06]}  e5 {[%clk 0:00:16]} 47. h4 {[%clk 0:00:03]}  Ke3 {[%clk 0:00:15]} 48. h5 {[%clk 0:00:03]}  gxh5 {[%clk 0:00:15]} 49. Nh7 {[%clk 0:00:04]}  d4 {[%clk 0:00:15]} 50. Nf5+ {[%clk 0:00:05]}  Kf2 {[%clk 0:00:14]} 51. Ng5 {[%clk 0:00:05]}  Nxg2 {[%clk 0:00:14]} 52. Nh3+ {[%clk 0:00:05]}  Kxf3 {[%clk 0:00:14]} 53. Nd6 {[%clk 0:00:05]}  Bc6 {[%clk 0:00:12]} 54. Ng5+ {[%clk 0:00:05]}  Kf2 {[%clk 0:00:11]} 55. Nge4+ {[%clk 0:00:05]}  Ke3 {[%clk 0:00:10]} 56. Nc5 {[%clk 0:00:02]}  Nf4 {[%clk 0:00:09]} 57. Nc4+ {[%clk 0:00:01]}  Kf2 {[%clk 0:00:09]} 58. Nxe5 {[%clk 0:00:02]}  Bd5 {[%clk 0:00:08]} 0-1


[Site "https://www.chess.com"]

[Event "Titled Tuesday Blitz May 24 Early 2022"]
[White "De Arruda, Leandro Formes"]
[Black "Hirneise, Jens"]
[WhiteFideId "22722009"]
[BlackFideId "24614734"]
[WhiteElo "1852"]
[BlackElo "2359"]
[Result "0-1"]
[Round "04"]
[TimeControl "180+1"]
[Date "2022.05.25"]
[WhiteClock "0:00:01"]
[BlackClock "0:00:36"]

1. d4 {[%clk 0:02:59]}  e6 {[%clk 0:02:56]} 2. Nf3 {[%clk 0:02:59]}  Nf6 {[%clk 0:02:50]} 3. e3 {[%clk 0:03:00]}  d5 {[%clk 0:02:43]} 4. Bd3 {[%clk 0:02:55]}  Ne4 {[%clk 0:02:38]} 5. Ne5 {[%clk 0:02:53]}  Nd7 {[%clk 0:02:35]} 6. O-O {[%clk 0:02:51]}  Nxe5 {[%clk 0:02:34]} 7. dxe5 {[%clk 0:02:52]}  Nc5 {[%clk 0:02:30]} 8. Be2 {[%clk 0:02:50]}  Be7 {[%clk 0:02:30]} 9. Nd2 {[%clk 0:02:40]}  O-O {[%clk 0:02:29]} 10. b3 {[%clk 0:02:37]}  f6 {[%clk 0:02:21]} 11. Bb2 {[%clk 0:02:36]}  f5 {[%clk 0:02:14]} 12. c4 {[%clk 0:02:29]}  c6 {[%clk 0:02:14]} 13. Bd4 {[%clk 0:02:25]}  b6 {[%clk 0:02:10]} 14. Rc1 {[%clk 0:02:21]}  Bb7 {[%clk 0:02:11]} 15. f4 {[%clk 0:02:00]}  a5 {[%clk 0:02:09]} 16. Rf3 {[%clk 0:02:00]}  a4 {[%clk 0:02:00]} 17. Rh3 {[%clk 0:01:52]}  axb3 {[%clk 0:01:57]} 18. axb3 {[%clk 0:01:53]}  Ra2 {[%clk 0:01:51]} 19. Rc2 {[%clk 0:01:41]}  Qa8 {[%clk 0:01:46]} 20. g4 {[%clk 0:01:30]}  g6 {[%clk 0:01:29]} 21. gxf5 {[%clk 0:01:27]}  exf5 {[%clk 0:01:29]} 22. cxd5 {[%clk 0:01:17]}  cxd5 {[%clk 0:01:28]} 23. b4 {[%clk 0:01:17]}  Ne6 {[%clk 0:01:26]} 24. Bxb6 {[%clk 0:00:55]}  Bxb4 {[%clk 0:01:19]} 25. Rf3 {[%clk 0:00:37]}  Rc8 {[%clk 0:01:15]} 26. Rxa2 {[%clk 0:00:30]}  Qxa2 {[%clk 0:01:14]} 27. Nb3 {[%clk 0:00:21]}  Rc2 {[%clk 0:00:41]} 28. Nd4 {[%clk 0:00:06]}  Nxd4 {[%clk 0:00:37]} 29. exd4 {[%clk 0:00:02]}  Rxe2 {[%clk 0:00:36]} 30. Qf1 {[%clk 0:00:01]} 0-1


[Site "https://www.chess.com"]

[Event "Titled Tuesday Blitz May 24 Early 2022"]
[White "Decuigniere, Tom"]
[Black "Soumya, Swaminathan"]
[WhiteFideId "26093820"]
[BlackFideId "5016193"]
[WhiteElo "1997"]
[BlackElo "2115"]
[Result "1-0"]
[Round "04"]
[TimeControl "180+1"]
[Date "2022.05.25"]
[WhiteClock "0:00:03"]
[BlackClock "0:00:01"]

1. e4 {[%clk 0:02:54]}  c5 {[%clk 0:02:58]} 2. Nf3 {[%clk 0:02:53]}  Nc6 {[%clk 0:02:58]} 3. Bb5 {[%clk 0:02:52]}  g6 {[%clk 0:02:58]} 4. O-O {[%clk 0:02:50]}  Bg7 {[%clk 0:02:56]} 5. Re1 {[%clk 0:02:50]}  Nf6 {[%clk 0:02:44]} 6. Nc3 {[%clk 0:02:49]}  O-O {[%clk 0:02:17]} 7. e5 {[%clk 0:02:46]}  Ng4 {[%clk 0:02:01]} 8. Bxc6 {[%clk 0:02:43]}  bxc6 {[%clk 0:02:01]} 9. h3 {[%clk 0:02:42]}  Nh6 {[%clk 0:02:01]} 10. d3 {[%clk 0:02:25]}  d5 {[%clk 0:01:59]} 11. exd6 {[%clk 0:02:16]}  exd6 {[%clk 0:01:56]} 12. Bf4 {[%clk 0:02:05]}  Nf5 {[%clk 0:01:51]} 13. Qd2 {[%clk 0:01:28]}  Rb8 {[%clk 0:01:45]} 14. Rab1 {[%clk 0:01:10]}  Rb7 {[%clk 0:00:55]} 15. b3 {[%clk 0:00:55]}  h6 {[%clk 0:00:23]} 16. g3 {[%clk 0:00:46]}  g5 {[%clk 0:00:22]} 17. Be3 {[%clk 0:00:42]}  Nxe3 {[%clk 0:00:21]} 18. fxe3 {[%clk 0:00:35]}  Bxh3 {[%clk 0:00:21]} 19. Ne4 {[%clk 0:00:29]}  Re7 {[%clk 0:00:15]} 20. Qh2 {[%clk 0:00:18]}  Bg4 {[%clk 0:00:14]} 21. Nfd2 {[%clk 0:00:18]}  Bc8 {[%clk 0:00:12]} 22. Rf1 {[%clk 0:00:16]}  f5 {[%clk 0:00:11]} 23. Nf2 {[%clk 0:00:14]}  Rxe3 {[%clk 0:00:12]} 24. Nc4 {[%clk 0:00:13]}  Re2 {[%clk 0:00:11]} 25. Qh5 {[%clk 0:00:12]}  Rfe8 {[%clk 0:00:05]} 26. c3 {[%clk 0:00:05]}  d5 {[%clk 0:00:05]} 27. Na5 {[%clk 0:00:03]}  Bd7 {[%clk 0:00:04]} 28. Nb7 {[%clk 0:00:03]}  Qf6 {[%clk 0:00:03]} 29. Nxc5 {[%clk 0:00:02]}  Bc8 {[%clk 0:00:02]} 30. d4 {[%clk 0:00:02]}  Qf7 {[%clk 0:00:02]} 31. Qxf7+ {[%clk 0:00:01]}  Kxf7 {[%clk 0:00:02]} 32. Nfd3 {[%clk 0:00:02]}  Kg6 {[%clk 0:00:01]} 33. g4 {[%clk 0:00:03]}  fxg4 {[%clk 0:00:01]} 34. Rf2 {[%clk 0:00:03]} 1-0


[Site "https://www.chess.com"]

[Event "Titled Tuesday Blitz May 24 Early 2022"]
[White "Demchenko, Anton"]
[Black "Darini, Pouria"]
[WhiteFideId "4160258"]
[BlackFideId "12502200"]
[WhiteElo "2539"]
[BlackElo "2483"]
[Result "1-0"]
[Round "04"]
[TimeControl "180+1"]
[Date "2022.05.24"]
[WhiteClock "0:00:43"]
[BlackClock "0:00:02"]

1. e4 {[%clk 0:03:00]}  c5 {[%clk 0:02:59]} 2. Nf3 {[%clk 0:02:58]}  d6 {[%clk 0:02:59]} 3. d4 {[%clk 0:02:58]}  cxd4 {[%clk 0:02:59]} 4. Qxd4 {[%clk 0:02:59]}  Nc6 {[%clk 0:02:58]} 5. Bb5 {[%clk 0:03:00]}  Bd7 {[%clk 0:02:58]} 6. Bxc6 {[%clk 0:03:00]}  Bxc6 {[%clk 0:02:59]} 7. Nc3 {[%clk 0:03:01]}  Nf6 {[%clk 0:02:58]} 8. Bg5 {[%clk 0:03:02]}  e6 {[%clk 0:02:59]} 9. O-O-O {[%clk 0:03:02]}  Be7 {[%clk 0:02:59]} 10. Qd3 {[%clk 0:03:02]}  h6 {[%clk 0:02:55]} 11. Bh4 {[%clk 0:02:58]}  O-O {[%clk 0:02:47]} 12. Nd4 {[%clk 0:02:56]}  Qa5 {[%clk 0:02:24]} 13. f3 {[%clk 0:02:41]}  Rfe8 {[%clk 0:02:23]} 14. Be1 {[%clk 0:02:24]}  Qd8 {[%clk 0:02:06]} 15. Bg3 {[%clk 0:02:12]}  d5 {[%clk 0:01:49]} 16. e5 {[%clk 0:02:08]}  Nd7 {[%clk 0:01:48]} 17. f4 {[%clk 0:02:09]}  Nc5 {[%clk 0:01:44]} 18. Qf3 {[%clk 0:02:09]}  Bf8 {[%clk 0:01:28]} 19. Kb1 {[%clk 0:02:08]}  Rc8 {[%clk 0:01:16]} 20. f5 {[%clk 0:02:08]}  exf5 {[%clk 0:01:16]} 21. Qxf5 {[%clk 0:01:59]}  Ne6 {[%clk 0:01:10]} 22. Rhf1 {[%clk 0:01:54]}  Qe7 {[%clk 0:01:02]} 23. Nce2 {[%clk 0:01:52]}  Bd7 {[%clk 0:01:00]} 24. Qf2 {[%clk 0:01:47]}  Nc5 {[%clk 0:00:57]} 25. Bh4 {[%clk 0:01:42]}  Qxe5 {[%clk 0:00:44]} 26. Qxf7+ {[%clk 0:01:36]}  Kh8 {[%clk 0:00:45]} 27. Nf4 {[%clk 0:01:31]}  Kh7 {[%clk 0:00:19]} 28. Qg6+ {[%clk 0:01:16]}  Kg8 {[%clk 0:00:18]} 29. Nh5 {[%clk 0:01:06]}  Ne4 {[%clk 0:00:11]} 30. Bf6 {[%clk 0:00:49]}  Qd6 {[%clk 0:00:06]} 31. Nxg7 {[%clk 0:00:46]}  Nxf6 {[%clk 0:00:02]} 32. Nxe8+ {[%clk 0:00:43]} 1-0


[Site "https://www.chess.com"]

[Event "Titled Tuesday Blitz May 24 Early 2022"]
[White "Derraugh, Geordie"]
[Black "Kosteniuk, Alexandra"]
[WhiteFideId "2603950"]
[BlackFideId "4128125"]
[WhiteElo "2116"]
[BlackElo "2469"]
[Result "1/2-1/2"]
[Round "04"]
[TimeControl "180+1"]
[Date "2022.05.25"]
[WhiteClock "0:00:06"]
[BlackClock "0:00:13"]

1. e4 {[%clk 0:03:00]}  c6 {[%clk 0:02:59]} 2. c4 {[%clk 0:03:00]}  d5 {[%clk 0:02:58]} 3. exd5 {[%clk 0:03:01]}  cxd5 {[%clk 0:02:59]} 4. cxd5 {[%clk 0:03:01]}  Nf6 {[%clk 0:03:00]} 5. Nc3 {[%clk 0:03:01]}  Nxd5 {[%clk 0:02:59]} 6. Nf3 {[%clk 0:03:00]}  Nxc3 {[%clk 0:02:51]} 7. bxc3 {[%clk 0:03:00]}  g6 {[%clk 0:02:50]} 8. d4 {[%clk 0:02:59]}  Bg7 {[%clk 0:02:50]} 9. Bd3 {[%clk 0:02:59]}  O-O {[%clk 0:02:50]} 10. O-O {[%clk 0:02:58]}  Nc6 {[%clk 0:02:49]} 11. Re1 {[%clk 0:02:58]}  b6 {[%clk 0:02:35]} 12. Bg5 {[%clk 0:02:56]}  Bb7 {[%clk 0:02:34]} 13. Be4 {[%clk 0:02:54]}  Re8 {[%clk 0:02:33]} 14. Qa4 {[%clk 0:02:53]}  Qc7 {[%clk 0:02:30]} 15. Bh4 {[%clk 0:02:41]}  Na5 {[%clk 0:01:50]} 16. Bxb7 {[%clk 0:02:21]}  Qxb7 {[%clk 0:01:47]} 17. Qa3 {[%clk 0:02:03]}  e6 {[%clk 0:01:43]} 18. Ne5 {[%clk 0:01:58]}  Rac8 {[%clk 0:01:42]} 19. Re3 {[%clk 0:01:42]}  Qd5 {[%clk 0:01:34]} 20. Qa4 {[%clk 0:01:29]}  f6 {[%clk 0:01:26]} 21. Ng4 {[%clk 0:01:15]}  g5 {[%clk 0:01:23]} 22. Bg3 {[%clk 0:01:14]}  h5 {[%clk 0:01:21]} 23. Nxf6+ {[%clk 0:00:55]}  Bxf6 {[%clk 0:01:20]} 24. Be5 {[%clk 0:00:55]}  Be7 {[%clk 0:01:10]} 25. Rae1 {[%clk 0:00:36]}  Rf8 {[%clk 0:00:54]} 26. Qd1 {[%clk 0:00:36]}  g4 {[%clk 0:00:52]} 27. h3 {[%clk 0:00:36]}  Nc4 {[%clk 0:00:50]} 28. hxg4 {[%clk 0:00:23]}  Nxe3 {[%clk 0:00:48]} 29. Rxe3 {[%clk 0:00:24]}  Bh4 {[%clk 0:00:39]} 30. g3 {[%clk 0:00:12]}  Bg5 {[%clk 0:00:39]} 31. gxh5 {[%clk 0:00:11]}  Kf7 {[%clk 0:00:35]} 32. Rd3 {[%clk 0:00:04]}  Ke7 {[%clk 0:00:34]} 33. Qg4 {[%clk 0:00:04]}  Rf5 {[%clk 0:00:34]} 34. h6 {[%clk 0:00:04]}  Rcf8 {[%clk 0:00:30]} 35. h7 {[%clk 0:00:03]}  Bf6 {[%clk 0:00:29]} 36. Bxf6+ {[%clk 0:00:03]}  R5xf6 {[%clk 0:00:28]} 37. Qg7+ {[%clk 0:00:03]}  R6f7 {[%clk 0:00:29]} 38. h8=Q {[%clk 0:00:03]}  Rxh8 {[%clk 0:00:29]} 39. Qxh8 {[%clk 0:00:03]}  Qf5 {[%clk 0:00:29]} 40. Qh4+ {[%clk 0:00:03]}  Kd7 {[%clk 0:00:29]} 41. Rd2 {[%clk 0:00:04]}  Qb1+ {[%clk 0:00:30]} 42. Kg2 {[%clk 0:00:04]}  Qf5 {[%clk 0:00:30]} 43. Re2 {[%clk 0:00:03]}  Qf3+ {[%clk 0:00:30]} 44. Kf1 {[%clk 0:00:03]}  Qxc3 {[%clk 0:00:29]} 45. Qe4 {[%clk 0:00:04]}  Qc1+ {[%clk 0:00:27]} 46. Kg2 {[%clk 0:00:04]}  Rf6 {[%clk 0:00:26]} 47. Qb7+ {[%clk 0:00:04]}  Kd6 {[%clk 0:00:24]} 48. Qe4 {[%clk 0:00:04]}  Rh6 {[%clk 0:00:16]} 49. Qe5+ {[%clk 0:00:04]}  Kd7 {[%clk 0:00:16]} 50. Qg7+ {[%clk 0:00:04]}  Kd6 {[%clk 0:00:16]} 51. Qe5+ {[%clk 0:00:04]}  Kc6 {[%clk 0:00:15]} 52. Qe4+ {[%clk 0:00:04]}  Kb5 {[%clk 0:00:14]} 53. Kf3 {[%clk 0:00:04]}  Qh1+ {[%clk 0:00:14]} 54. Ke3 {[%clk 0:00:04]}  Qc1+ {[%clk 0:00:13]} 55. Kf3 {[%clk 0:00:05]}  Qh1+ {[%clk 0:00:13]} 56. Ke3 {[%clk 0:00:05]}  Qc1+ {[%clk 0:00:13]} 57. Kf3 {[%clk 0:00:06]} 1/2-1/2


[Site "https://www.chess.com"]

[Event "Titled Tuesday Blitz May 24 Early 2022"]
[White "Dubov, Daniil"]
[Black "Garriga Cazorla, Pere"]
[WhiteFideId "24126055"]
[BlackFideId "32011601"]
[WhiteElo "2791"]
[BlackElo "2433"]
[Result "1-0"]
[Round "04"]
[TimeControl "180+1"]
[Date "2022.05.24"]
[WhiteClock "0:00:18"]
[BlackClock "0:00:01"]

1. d4 {[%clk 0:03:00]}  Nf6 {[%clk 0:02:58]} 2. c4 {[%clk 0:03:00]}  e6 {[%clk 0:02:58]} 3. Nc3 {[%clk 0:03:00]}  Bb4 {[%clk 0:02:56]} 4. g3 {[%clk 0:03:00]}  d5 {[%clk 0:02:49]} 5. Bg2 {[%clk 0:02:58]}  O-O {[%clk 0:02:46]} 6. Nf3 {[%clk 0:02:58]}  dxc4 {[%clk 0:02:39]} 7. O-O {[%clk 0:02:58]}  a6 {[%clk 0:02:27]} 8. Ne5 {[%clk 0:02:56]}  c5 {[%clk 0:02:24]} 9. dxc5 {[%clk 0:02:54]}  Bxc5 {[%clk 0:02:24]} 10. Qxd8 {[%clk 0:02:50]}  Rxd8 {[%clk 0:02:25]} 11. Nxc4 {[%clk 0:02:50]}  Nc6 {[%clk 0:02:21]} 12. Na4 {[%clk 0:02:30]}  Ba7 {[%clk 0:02:01]} 13. Nab6 {[%clk 0:02:28]}  Rb8 {[%clk 0:02:01]} 14. Bf4 {[%clk 0:02:25]}  e5 {[%clk 0:01:39]} 15. Nxc8 {[%clk 0:01:51]}  exf4 {[%clk 0:01:33]} 16. Nxa7 {[%clk 0:01:48]}  Nxa7 {[%clk 0:01:32]} 17. gxf4 {[%clk 0:01:48]}  Rd4 {[%clk 0:01:24]} 18. Rac1 {[%clk 0:01:43]}  Rxf4 {[%clk 0:01:20]} 19. e3 {[%clk 0:01:38]}  Rg4 {[%clk 0:01:10]} 20. Ne5 {[%clk 0:01:30]}  Rb4 {[%clk 0:01:06]} 21. Rc7 {[%clk 0:01:28]}  Nb5 {[%clk 0:00:32]} 22. Rxf7 {[%clk 0:01:16]}  Re8 {[%clk 0:00:20]} 23. Nd3 {[%clk 0:01:15]}  Ra4 {[%clk 0:00:14]} 24. Rxb7 {[%clk 0:01:14]}  Rxa2 {[%clk 0:00:15]} 25. Nb4 {[%clk 0:00:56]}  Rxb2 {[%clk 0:00:14]} 26. Nxa6 {[%clk 0:00:56]}  Rc8 {[%clk 0:00:07]} 27. Rd1 {[%clk 0:00:46]}  h5 {[%clk 0:00:08]} 28. Bf1 {[%clk 0:00:44]}  Nc3 {[%clk 0:00:06]} 29. Rxb2 {[%clk 0:00:35]}  Nxd1 {[%clk 0:00:06]} 30. Rb1 {[%clk 0:00:32]}  Nc3 {[%clk 0:00:06]} 31. Rb4 {[%clk 0:00:31]}  Nce4 {[%clk 0:00:05]} 32. Bd3 {[%clk 0:00:23]}  Ng5 {[%clk 0:00:03]} 33. Kg2 {[%clk 0:00:22]}  Kf7 {[%clk 0:00:02]} 34. Rb7+ {[%clk 0:00:20]}  Kf8 {[%clk 0:00:01]} 35. Nc7 {[%clk 0:00:19]}  Kg8 {[%clk 0:00:01]} 36. Bg6 {[%clk 0:00:18]} 1-0


[Site "https://www.chess.com"]